Body,Body Name,Date,TransNo,Amount � (Excl VAT),Supplier name,Description,Expense Area,Expense Type,Expense Code,
http://opendatacommunities.org/id/london-borough-council/sutton,London Borough of Sutton,23/01/2021,1309674,8.32 , TWINKL LIMITED,TWINKL SUBSCRIPTION,Health and Wellbeing Directorate,Education Equipment,F009,
http://opendatacommunities.org/id/london-borough-council/sutton,London Borough of Sutton,07/01/2021,1309674,35.35 , AMZNMKTPLACE,TOYS & EQUIPMENT,Health and Wellbeing Directorate,Education Equipment,F009,
http://opendatacommunities.org/id/london-borough-council/sutton,London Borough of Sutton,04/01/2021,1309674,10.47 , AMZNMKTPLACE,FACE SHIELDS,Health and Wellbeing Directorate,Education Equipment,F009,
http://opendatacommunities.org/id/london-borough-council/sutton,London Borough of Sutton,23/01/2021,1309674,30.77 , TESCO STORE 3235,GROCERIES,Health and Wellbeing Directorate,Provisions - General,F150,
http://opendatacommunities.org/id/london-borough-council/sutton,London Borough of Sutton,07/01/2021,1309674,(29.12), BOOTS.COM,ITEMS NEEDED FOR CLIENT,Peoples Services Directorate,First Aid and Medical Requisites,F105,
http://opendatacommunities.org/id/london-borough-council/sutton,London Borough of Sutton,18/01/2021,1309674,79.99 , AMZNMKTPLACE,COMPUTER DESK REQUESTED BY SOCIAL WORKER (100%),Peoples Services Directorate,Personal Requisites,F106,
http://opendatacommunities.org/id/london-borough-council/sutton,London Borough of Sutton,22/01/2021,1309674,132.50 , EB  ADVISING WITH CONV,EVENT REQUIRED FOR SOCIAL WORKER,Peoples Services Directorate,Fees - Other,F299,
http://opendatacommunities.org/id/london-borough-council/sutton,London Borough of Sutton,06/01/2021,1309674,80.00 , AMAZON PRIME MJ7YI86K4,COLLEGE AMAZON PRIME MEMBERSHIP,Peoples Services Directorate,Administrative Equipment,F001,
http://opendatacommunities.org/id/london-borough-council/sutton,London Borough of Sutton,30/12/2020,1309674,50.39 , 123 REG LTD,JT 123REG 301220 50.39,Peoples Services Directorate,IT Licences,F385,
http://opendatacommunities.org/id/london-borough-council/sutton,London Borough of Sutton,18/01/2021,1309674,275.99 , 123 REG LTD,JT 123REG 180121 275.99,Peoples Services Directorate,Subscriptions - General,F450,
http://opendatacommunities.org/id/london-borough-council/sutton,London Borough of Sutton,15/01/2021,1309674,3.94 , JOTFORM INC.,JOTFORM SUBSCRIPTION 100121 195USD,Peoples Services Directorate,Advertising/Publicity (non Staff),F240,
http://opendatacommunities.org/id/london-borough-council/sutton,London Borough of Sutton,14/01/2021,1309674,195.00 , JOTFORM INC.,SPLIT - SILVER YEARLY NON-PROFIT 2 (136.2%),Peoples Services Directorate,Advertising/Publicity (non Staff),F240,
http://opendatacommunities.org/id/london-borough-council/sutton,London Borough of Sutton,14/01/2021,1309674,(51.83), JOTFORM INC.,BALANCING ENTRY AMOUNT (-108.6%),Peoples Services Directorate,Advertising/Publicity (non Staff),F240,
http://opendatacommunities.org/id/london-borough-council/sutton,London Borough of Sutton,30/12/2020,1309674,89.98 , MAILCHIMP,MAILCHIMP 301220 89.98,Peoples Services Directorate,Advertising/Publicity (non Staff),F240,
http://opendatacommunities.org/id/london-borough-council/sutton,London Borough of Sutton,20/01/2021,1309674,11.82 , ASDA STORES,COOKERY INGREDIENTS,Peoples Services Directorate,Education Equipment,F009,
http://opendatacommunities.org/id/london-borough-council/sutton,London Borough of Sutton,21/01/2021,1309674,187.48 , SUTTONAPPLI,ITEMS NEEDED FOR CLIENT,Peoples Services Directorate,Personal Requisites,F106,
http://opendatacommunities.org/id/london-borough-council/sutton,London Borough of Sutton,17/01/2021,1309674,26.74 , AMZNMKTPLACE,THERMOMETER REQUESTED BY QUAD SITE MANAGERS (87.73%),Peoples Services Directorate,Personal Requisites,F106,
http://opendatacommunities.org/id/london-borough-council/sutton,London Borough of Sutton,17/01/2021,1309674,3.74 , AMZNMKTPLACE,BALANCING ENTRY AMOUNT (12.27%),Peoples Services Directorate,Personal Requisites,F106,
http://opendatacommunities.org/id/london-borough-council/sutton,London Borough of Sutton,12/01/2021,1309674,139.75 , AMZNMKTPLACE AMAZON.CO,TV REQUESTED BY SOCIAL WORKER FOR CARE LEAVER (97.39%),Peoples Services Directorate,Personal Requisites,F106,
http://opendatacommunities.org/id/london-borough-council/sutton,London Borough of Sutton,12/01/2021,1309674,3.74 , AMZNMKTPLACE AMAZON.CO,BALANCING ENTRY AMOUNT (2.61%),Peoples Services Directorate,Personal Requisites,F106,
http://opendatacommunities.org/id/london-borough-council/sutton,London Borough of Sutton,12/01/2021,1309674,109.99 , AMZNMKTPLACE AMAZON.CO,MINI OVEN FOR A CARE LEAVER (100%),Peoples Services Directorate,Personal Requisites,F106,
http://opendatacommunities.org/id/london-borough-council/sutton,London Borough of Sutton,11/01/2021,1309674,171.62 , ARGOS LTD,ITEMS NEEDED FOR CLIENT,Peoples Services Directorate,Personal Requisites,F106,
http://opendatacommunities.org/id/london-borough-council/sutton,London Borough of Sutton,11/01/2021,1309674,224.17 , SUTTONAPPLI,ITEMS NEEDED FOR CLIENT,Peoples Services Directorate,Personal Requisites,F106,
http://opendatacommunities.org/id/london-borough-council/sutton,London Borough of Sutton,25/01/2021,1309674,10.00 , AMAZON.CO.UK MV3MP35G4,DI XMAS,Peoples Services Directorate,Personal Requisites,F106,
http://opendatacommunities.org/id/london-borough-council/sutton,London Borough of Sutton,25/01/2021,1309674,12.00 , PAYPAL  ALCOHOLICSA,LD AA BOOK,Peoples Services Directorate,Personal Requisites,F106,
http://opendatacommunities.org/id/london-borough-council/sutton,London Borough of Sutton,19/01/2021,1309674,28.25 , SAINSBURYS SACAT 2006,JD,Peoples Services Directorate,Personal Requisites,F106,
http://opendatacommunities.org/id/london-borough-council/sutton,London Borough of Sutton,18/01/2021,1309674,14.24 , PPOINT_ D.A.R MINI MAR,DR,Peoples Services Directorate,Personal Requisites,F106,
http://opendatacommunities.org/id/london-borough-council/sutton,London Borough of Sutton,18/01/2021,1309674,18.75 , POUNDLAND,MA,Peoples Services Directorate,Personal Requisites,F106,
http://opendatacommunities.org/id/london-borough-council/sutton,London Borough of Sutton,30/12/2020,1309674,4.99 , PRIME VIDEO MJ4JY31T4,MA COVID LOCKDOWN,Peoples Services Directorate,Personal Requisites,F106,
http://opendatacommunities.org/id/london-borough-council/sutton,London Borough of Sutton,14/01/2021,1309674,(29.99), AMZ FOOTBALLSHOPONLINE,SPLIT - LIVERPOOL FC OFFICIAL FOOTBALL GIFT MENS SHOWER JACKET WINDBREAKER MEDIUM BLACK (100%),Peoples Services Directorate,Client Care/Assistance,H301,
http://opendatacommunities.org/id/london-borough-council/sutton,London Borough of Sutton,25/01/2021,1309674,198.00 , AMZNMKTPLACE,LD SETTING UP,Peoples Services Directorate,Set Up Costs - Children Leaving Care,H336,
http://opendatacommunities.org/id/london-borough-council/sutton,London Borough of Sutton,25/01/2021,1309674,184.99 , AMZNMKTPLACE,LD SETTING UP,Peoples Services Directorate,Set Up Costs - Children Leaving Care,H336,
http://opendatacommunities.org/id/london-borough-council/sutton,London Borough of Sutton,21/01/2021,1309674,41.99 , WF  WAYFAIR 3108608154,LD SETTING UP,Peoples Services Directorate,Set Up Costs - Children Leaving Care,H336,
http://opendatacommunities.org/id/london-borough-council/sutton,London Borough of Sutton,21/01/2021,1309674,678.98 , SUTTONAPPLI,LD SETTING UP,Peoples Services Directorate,Set Up Costs - Children Leaving Care,H336,
http://opendatacommunities.org/id/london-borough-council/sutton,London Borough of Sutton,22/01/2021,1309674,29.17 , FOOD BOXES,MORRISON FOOD BOX REQUIRED FOR CLIENT AS PER SOCIAL WORKERS REQUEST,Peoples Services Directorate,Client Care/Assistance,H301,
http://opendatacommunities.org/id/london-borough-council/sutton,London Borough of Sutton,06/01/2021,1309674,88.17 , TESCO STORE 3235,FOOD ORDER FOR CHILDREN AT THORNTON ROAD,Peoples Services Directorate,Materials - General,F100,
http://opendatacommunities.org/id/london-borough-council/sutton,London Borough of Sutton,11/01/2021,1309674,53.27 , ASDA STORES,FOOD ORDER FOR CHILDREN AT THORNTON ROAD,Peoples Services Directorate,Personal Requisites,F106,
http://opendatacommunities.org/id/london-borough-council/sutton,London Borough of Sutton,11/01/2021,1309674,48.55 , ASDA GROCERIES ONLINE,FOOD ORDER FOR CHILDREN AT THORNTON ROAD,Peoples Services Directorate,Personal Requisites,F106,
http://opendatacommunities.org/id/london-borough-council/sutton,London Borough of Sutton,11/01/2021,1309674,5.00 , ASDA STORES 7134,FOOD ORDER FOR CHILDREN AT THORNTON ROAD,Peoples Services Directorate,Personal Requisites,F106,
http://opendatacommunities.org/id/london-borough-council/sutton,London Borough of Sutton,07/01/2021,1309674,19.33 , ASDA STORES,FOOD ORDER FOR CHILDREN AT THORNTON ROAD,Peoples Services Directorate,Personal Requisites,F106,
http://opendatacommunities.org/id/london-borough-council/sutton,London Borough of Sutton,06/01/2021,1309674,6.61 , PPOINT_ SPARKS FOOD &,FOOD ORDER FOR CHILDREN AT THORNTON ROAD,Peoples Services Directorate,Personal Requisites,F106,
http://opendatacommunities.org/id/london-borough-council/sutton,London Borough of Sutton,23/01/2021,1309674,46.49 , ASDA STORES,FOOD ORDER FOR CHILDREN AT THORNTON ROAD,Peoples Services Directorate,Personal Requisites,F106,
http://opendatacommunities.org/id/london-borough-council/sutton,London Borough of Sutton,21/01/2021,1309674,3.33 , ASDA STORES,FOOD ORDER FOR CHILDREN AT THORNTON ROAD,Peoples Services Directorate,Personal Requisites,F106,
http://opendatacommunities.org/id/london-borough-council/sutton,London Borough of Sutton,19/01/2021,1309674,3.32 , PPOINT_ SPARKS FOOD &,FOOD ORDER FOR CHILDREN AT THORNTON ROAD,Peoples Services Directorate,Personal Requisites,F106,
http://opendatacommunities.org/id/london-borough-council/sutton,London Borough of Sutton,19/01/2021,1309674,17.50 , HMCOURTS-SERVICE.G,FINE FOR A CHILD AT THORNTON ROAD,Peoples Services Directorate,Personal Requisites,F106,
http://opendatacommunities.org/id/london-borough-council/sutton,London Borough of Sutton,16/01/2021,1309674,24.48 , ASDA STORES,FOOD ORDER FOR CHILDREN AT THORNTON ROAD,Peoples Services Directorate,Personal Requisites,F106,
http://opendatacommunities.org/id/london-borough-council/sutton,London Borough of Sutton,16/01/2021,1309674,55.52 , ASDA STORES,FOOD ORDER FOR CHILDREN AT THORNTON ROAD,Peoples Services Directorate,Personal Requisites,F106,
http://opendatacommunities.org/id/london-borough-council/sutton,London Borough of Sutton,16/01/2021,1309674,48.24 , B & Q 1191,ITEMS NEEDED FOR CHILDREN AT THORNTON ROAD,Peoples Services Directorate,Personal Requisites,F106,
http://opendatacommunities.org/id/london-borough-council/sutton,London Borough of Sutton,16/01/2021,1309674,3.82 , BUDGENS,ITEMS NEEDED FOR CHILDREN AT THORNTON ROAD,Peoples Services Directorate,Personal Requisites,F106,
http://opendatacommunities.org/id/london-borough-council/sutton,London Borough of Sutton,15/01/2021,1309674,16.67 , TESCO STORE 3235,FOOD ORDER FOR CHILDREN AT THORNTON ROAD,Peoples Services Directorate,Personal Requisites,F106,
http://opendatacommunities.org/id/london-borough-council/sutton,London Borough of Sutton,12/01/2021,1309674,20.00 , TESCO STORE 3235,FOOD ORDER FOR CHILDREN AT THORNTON ROAD,Peoples Services Directorate,Personal Requisites,F106,
http://opendatacommunities.org/id/london-borough-council/sutton,London Borough of Sutton,12/01/2021,1309674,32.08 , TESCO STORE 3235,FOOD ORDER FOR CHILDREN AT THORNTON ROAD,Peoples Services Directorate,Personal Requisites,F106,
http://opendatacommunities.org/id/london-borough-council/sutton,London Borough of Sutton,12/01/2021,1309674,18.75 , TESCO STORE 3235,FOOD ORDER FOR CHILDREN AT THORNTON ROAD,Peoples Services Directorate,Personal Requisites,F106,
http://opendatacommunities.org/id/london-borough-council/sutton,London Borough of Sutton,12/01/2021,1309674,4.77 , LIDL GB LONDON,FOOD ORDER FOR CHILDREN AT THORNTON ROAD,Peoples Services Directorate,Personal Requisites,F106,
http://opendatacommunities.org/id/london-borough-council/sutton,London Borough of Sutton,11/01/2021,1309674,2.92 , PPOINT_ SPARKS FOOD &,FOOD ORDER FOR CHILDREN AT THORNTON ROAD,Peoples Services Directorate,Personal Requisites,F106,
http://opendatacommunities.org/id/london-borough-council/sutton,London Borough of Sutton,04/01/2021,1309674,5.83 , WM MORRISONS STORE,FOOD ORDER FOR CHILDREN AT THORNTON ROAD,Peoples Services Directorate,Personal Requisites,F106,
http://opendatacommunities.org/id/london-borough-council/sutton,London Borough of Sutton,25/01/2021,1309674,2.49 , BUDGENS,ITEMS NEEDED FOR CHILDREN AT THORNTON ROAD,Peoples Services Directorate,Personal Requisites,F106,
http://opendatacommunities.org/id/london-borough-council/sutton,London Borough of Sutton,23/01/2021,1309674,13.33 , ASDA STORES,FOOD ORDER FOR CHILDREN AT THORNTON ROAD,Peoples Services Directorate,Personal Requisites,F106,
http://opendatacommunities.org/id/london-borough-council/sutton,London Borough of Sutton,06/01/2021,1309674,14.12 , FEMME LUXE,CLOTHING ALLOWANCE FOR CHILD AT THORNTON ROAD,Peoples Services Directorate,C.C.A Travel & Subsistance,H212,
http://opendatacommunities.org/id/london-borough-council/sutton,London Borough of Sutton,06/01/2021,1309674,34.12 , BOOHOO.COM,ITEMS NEEDED FOR CHILDREN AT THORNTON ROAD,Peoples Services Directorate,C.C.A Travel & Subsistance,H212,
http://opendatacommunities.org/id/london-borough-council/sutton,London Borough of Sutton,06/01/2021,1309674,21.66 , SP   ISAWITFIRST.COM,CLOTHING ALLOWANCE FOR CHILD AT THORNTON ROAD,Peoples Services Directorate,C.C.A Travel & Subsistance,H212,
http://opendatacommunities.org/id/london-borough-council/sutton,London Borough of Sutton,13/01/2021,1309674,9.46 , UBER  TRIP HELP.UBER.C,CAB JOURNEY NEEDED FOR AN OUTING,Peoples Services Directorate,C.C.A Travel & Subsistance,H212,
http://opendatacommunities.org/id/london-borough-council/sutton,London Borough of Sutton,13/01/2021,1309674,8.27 , UBER    TRIP,CAB JOURNEY NEEDED FOR AN OUTING,Peoples Services Directorate,C.C.A Travel & Subsistance,H212,
http://opendatacommunities.org/id/london-borough-council/sutton,London Borough of Sutton,13/01/2021,1309674,8.19 , UBER TRIP HELP.UBER.CO,CAB JOURNEY NEEDED FOR AN OUTING,Peoples Services Directorate,C.C.A Travel & Subsistance,H212,
http://opendatacommunities.org/id/london-borough-council/sutton,London Borough of Sutton,21/01/2021,1309674,29.37 , SP   ISAWITFIRST.COM,CLOTHING ALLOWANCE FOR CHILDREN AT THORNTON ROAD,Peoples Services Directorate,C.C.A Food & Clothing,H213,
http://opendatacommunities.org/id/london-borough-council/sutton,London Borough of Sutton,16/01/2021,1309674,7.83 , MCDONALDS911,FOOD TAKEAWAY FOR CHILDREN AT THORNTON ROAD,Peoples Services Directorate,C.C.A Food & Clothing,H213,
http://opendatacommunities.org/id/london-borough-council/sutton,London Borough of Sutton,15/01/2021,1309674,1.24 , PPOINT_ SPARKS FOOD &,ITEMS NEEDED FOR CHILDREN AT THORNTON ROAD,Peoples Services Directorate,C.C.A Food & Clothing,H213,
http://opendatacommunities.org/id/london-borough-council/sutton,London Borough of Sutton,12/01/2021,1309674,11.92 , JUST EAT,FOOD TAKEAWAY FOR CHILDREN AT THORNTON ROAD,Peoples Services Directorate,C.C.A Food & Clothing,H213,
http://opendatacommunities.org/id/london-borough-council/sutton,London Borough of Sutton,13/01/2021,1309674,1.42 , RINGGO,CAR PARK NEEDED FOR AN OUTING,Peoples Services Directorate,Client Care/Assistance,H301,
http://opendatacommunities.org/id/london-borough-council/sutton,London Borough of Sutton,14/01/2021,1309674,20.00 , OYSTER AUTO TOPUP,OYSTER CARD AUTO TOP UP,Peoples Services Directorate,Travelling and Subsistence Allowances,A530,
http://opendatacommunities.org/id/london-borough-council/sutton,London Borough of Sutton,05/01/2021,1309674,487.08 , PREMIER INN,HOTEL REQUESTED BY SOCIAL WORKER,Peoples Services Directorate,C.C.A Travel & Subsistance,H212,
http://opendatacommunities.org/id/london-borough-council/sutton,London Borough of Sutton,05/01/2021,1309674,147.08 , PREMIER INN,CLIENT REQUIRES HOTEL TO STAY IN,Peoples Services Directorate,Set Up Costs - Children Leaving Care,H336,
http://opendatacommunities.org/id/london-borough-council/sutton,London Borough of Sutton,22/01/2021,1309674,10.00 , AMAZON.CO.UK MV66R8GM4,GIFT VOUCHER FOR A CARE LEAVER (6.67%),Peoples Services Directorate,Personal Requisites,F106,
http://opendatacommunities.org/id/london-borough-council/sutton,London Borough of Sutton,22/01/2021,1309674,10.00 , AMAZON.CO.UK MV66R8GM4,GIFT VOUCHER FOR A CARE LEAVER (6.67%),Peoples Services Directorate,Personal Requisites,F106,
http://opendatacommunities.org/id/london-borough-council/sutton,London Borough of Sutton,22/01/2021,1309674,10.00 , AMAZON.CO.UK MV66R8GM4,GIFT VOUCHER FOR A CARE LEAVER (6.67%),Peoples Services Directorate,Personal Requisites,F106,
http://opendatacommunities.org/id/london-borough-council/sutton,London Borough of Sutton,22/01/2021,1309674,10.00 , AMAZON.CO.UK MV66R8GM4,GIFT VOUCHER FOR A CARE LEAVER (6.67%),Peoples Services Directorate,Personal Requisites,F106,
http://opendatacommunities.org/id/london-borough-council/sutton,London Borough of Sutton,22/01/2021,1309674,10.00 , AMAZON.CO.UK MV66R8GM4,GIFT VOUCHER FOR A CARE LEAVER (6.67%),Peoples Services Directorate,Personal Requisites,F106,
http://opendatacommunities.org/id/london-borough-council/sutton,London Borough of Sutton,22/01/2021,1309674,10.00 , AMAZON.CO.UK MV66R8GM4,GIFT VOUCHER FOR A CARE LEAVER (6.67%),Peoples Services Directorate,Personal Requisites,F106,
http://opendatacommunities.org/id/london-borough-council/sutton,London Borough of Sutton,15/01/2021,1309674,124.99 , PAYPAL  ORCHIDCELLM,REQUESTED BY SOCIAL WORKER,Peoples Services Directorate,Personal Requisites,F106,
http://opendatacommunities.org/id/london-borough-council/sutton,London Borough of Sutton,21/01/2021,1309674,3.00 , WILKO RETAIL LIMITED,POST ENVELOPES,Peoples Services Directorate,Personal Requisites,F106,
http://opendatacommunities.org/id/london-borough-council/sutton,London Borough of Sutton,15/01/2021,1309674,3.00 , WILKO RETAIL LIMITED,POST ENVELOPES,Peoples Services Directorate,Personal Requisites,F106,
http://opendatacommunities.org/id/london-borough-council/sutton,London Borough of Sutton,22/01/2021,1309674,10.00 , AMAZON.CO.UK MV66R8GM4,GIFT VOUCHER FOR A CARE LEAVER (6.67%),Peoples Services Directorate,Personal Requisites,F106,
http://opendatacommunities.org/id/london-borough-council/sutton,London Borough of Sutton,22/01/2021,1309674,10.00 , AMAZON.CO.UK MV66R8GM4,GIFT VOUCHER FOR A CARE LEAVER (6.67%),Peoples Services Directorate,Personal Requisites,F106,
http://opendatacommunities.org/id/london-borough-council/sutton,London Borough of Sutton,22/01/2021,1309674,10.00 , AMAZON.CO.UK MV66R8GM4,GIFT VOUCHER FOR A CARE LEAVER (6.67%),Peoples Services Directorate,Personal Requisites,F106,
http://opendatacommunities.org/id/london-borough-council/sutton,London Borough of Sutton,22/01/2021,1309674,10.00 , AMAZON.CO.UK MV66R8GM4,GIFT VOUCHER FOR A CARE LEAVER (6.67%),Peoples Services Directorate,Personal Requisites,F106,
http://opendatacommunities.org/id/london-borough-council/sutton,London Borough of Sutton,22/01/2021,1309674,10.00 , AMAZON.CO.UK MV66R8GM4,GIFT VOUCHER FOR A CARE LEAVER (6.62%),Peoples Services Directorate,Personal Requisites,F106,
http://opendatacommunities.org/id/london-borough-council/sutton,London Borough of Sutton,22/01/2021,1309674,10.00 , AMAZON.CO.UK MV66R8GM4,GIFT VOUCHER FOR A CARE LEAVER (6.67%),Peoples Services Directorate,Personal Requisites,F106,
http://opendatacommunities.org/id/london-borough-council/sutton,London Borough of Sutton,22/01/2021,1309674,10.00 , AMAZON.CO.UK MV66R8GM4,GIFT VOUCHER FOR A CARE LEAVER (6.67%),Peoples Services Directorate,Personal Requisites,F106,
http://opendatacommunities.org/id/london-borough-council/sutton,London Borough of Sutton,22/01/2021,1309674,10.00 , AMAZON.CO.UK MV66R8GM4,GIFT VOUCHER FOR A CARE LEAVER (6.67%),Peoples Services Directorate,Personal Requisites,F106,
http://opendatacommunities.org/id/london-borough-council/sutton,London Borough of Sutton,22/01/2021,1309674,10.00 , AMAZON.CO.UK MV66R8GM4,GIFT VOUCHER FOR A CARE LEAVER (6.67%),Peoples Services Directorate,Personal Requisites,F106,
http://opendatacommunities.org/id/london-borough-council/sutton,London Borough of Sutton,07/01/2021,1309674,240.00 , DOCUSIGN INC. GBP,SPECIAL GUARDIAN DOCUSIGN,Peoples Services Directorate,Printing - General,F215,
http://opendatacommunities.org/id/london-borough-council/sutton,London Borough of Sutton,12/01/2021,1309674,2.44 , NETNANNY- 484-856-2789,NET NANNY EXCHANGE FEE,Peoples Services Directorate,Health and Safety Equipment,F005,
http://opendatacommunities.org/id/london-borough-council/sutton,London Borough of Sutton,11/01/2021,1309674,88.66 , NETNANNY- 484-856-2789,NET NANNY FOR LAC LAPTOPS,Peoples Services Directorate,Health and Safety Equipment,F005,
http://opendatacommunities.org/id/london-borough-council/sutton,London Borough of Sutton,11/01/2021,1309674,(89.20), NETNANNY- 484-856-2789,NET NANNY FOR LAC LAPTOPS,Peoples Services Directorate,Health and Safety Equipment,F005,
http://opendatacommunities.org/id/london-borough-council/sutton,London Borough of Sutton,22/01/2021,1309674,30.00 , GEN REGISTER OFFICE,BIRTH CERT REQUIRED FOR LEGAL PROCEEDINGS,Peoples Services Directorate,Personal Requisites,F106,
http://opendatacommunities.org/id/london-borough-council/sutton,London Borough of Sutton,08/01/2021,1309674,33.00 , LBSUTTON,BIRTH CERTIFICATES,Peoples Services Directorate,Personal Requisites,F106,
http://opendatacommunities.org/id/london-borough-council/sutton,London Borough of Sutton,30/12/2020,1309674,30.00 , GEN REGISTER OFFICE,BIRTH CERT REQUIRED FOR LEGAL PROCEEDINGS,Peoples Services Directorate,Personal Requisites,F106,
http://opendatacommunities.org/id/london-borough-council/sutton,London Borough of Sutton,30/12/2020,1309674,27.50 , KENT COUNTY COUNCIL,BIRTH CERT REQUIRED FOR LEGAL PROCEEDINGS,Peoples Services Directorate,Personal Requisites,F106,
http://opendatacommunities.org/id/london-borough-council/sutton,London Borough of Sutton,25/01/2021,1309674,174.17 , PRIVATE CORONA VIRUS T,PRIVATE COVID TEST FOR CLIENT TO FLY OUT,Peoples Services Directorate,Fees - Other,F299,
http://opendatacommunities.org/id/london-borough-council/sutton,London Borough of Sutton,12/01/2021,1309674,(2.45), NETNANNY- 484-856-2789,NET NANNY EXCHANGE FEE,Peoples Services Directorate,Health and Safety Equipment,F005,
http://opendatacommunities.org/id/london-borough-council/sutton,London Borough of Sutton,19/01/2021,1309674,238.75 , PREMIER INN,HOTEL REQUESTED BY SOCIAL WORKER,Peoples Services Directorate,C.C.A Travel & Subsistance,H212,
http://opendatacommunities.org/id/london-borough-council/sutton,London Borough of Sutton,31/12/2020,1309674,0.31 , BUFFER PUBLISH PRO YR,SPLIT - PRO8 V1 - MONTHLY,Peoples Services Directorate,Fees - Other,F299,
http://opendatacommunities.org/id/london-borough-council/sutton,London Borough of Sutton,31/12/2020,1309674,2.64 , BUFFER PUBLISH PRO YR,SPLIT - PRO8 V1 - MONTHLY,Peoples Services Directorate,Fees - Other,F299,
http://opendatacommunities.org/id/london-borough-council/sutton,London Borough of Sutton,30/12/2020,1309674,15.00 , BUFFER PUBLISH PRO YR,SPLIT - PRO8 V1 - MONTHLY (134.29%),Peoples Services Directorate,Fees - Other,F299,
http://opendatacommunities.org/id/london-borough-council/sutton,London Borough of Sutton,30/12/2020,1309674,(3.83), BUFFER PUBLISH PRO YR,BALANCING ENTRY AMOUNT (-102.87%),Peoples Services Directorate,Fees - Other,F299,
http://opendatacommunities.org/id/london-borough-council/sutton,London Borough of Sutton,30/12/2020,1309674,144.00 , BUFFER PUBLISH PRO YR,SPLIT - PRO8 V1 - YEARLY (149.94%),Peoples Services Directorate,Fees - Other,F299,
http://opendatacommunities.org/id/london-borough-council/sutton,London Borough of Sutton,30/12/2020,1309674,(47.96), BUFFER PUBLISH PRO YR,BALANCING ENTRY AMOUNT (-149.82%),Peoples Services Directorate,Fees - Other,F299,
http://opendatacommunities.org/id/london-borough-council/sutton,London Borough of Sutton,24/01/2021,1309674,59.95 , ZOOM.US 888-799-9666,SUBSCRIPTION REQUIRED FOR SOCIAL WORKER,Peoples Services Directorate,Subscriptions - General,F450,
http://opendatacommunities.org/id/london-borough-council/sutton,London Borough of Sutton,30/12/2020,1309674,159.90 , ZOOM.US 888-799-9666,SUBSCRIPTION NEEDED FOR STAFF MEMBER,Peoples Services Directorate,Subscriptions - General,F450,
http://opendatacommunities.org/id/london-borough-council/sutton,London Borough of Sutton,12/01/2021,1309674,4.63 , INFOGRAM.COM,THIS IS FOR INFOGRAM.COM 273.60 USD REQUEST,Peoples Services Directorate,Personal Requisites,F106,
http://opendatacommunities.org/id/london-borough-council/sutton,London Borough of Sutton,11/01/2021,1309674,168.47 , INFOGRAM.COM,REQUESTED BY SOCIAL WORKER,Peoples Services Directorate,Personal Requisites,F106,
http://opendatacommunities.org/id/london-borough-council/sutton,London Borough of Sutton,20/01/2021,1309674,6.27 , FACEBK XDBGT23BL2,SPLIT - DA CAMPAIGN (2.09%),Peoples Services Directorate,Advertising/Publicity (non Staff),F240,
http://opendatacommunities.org/id/london-borough-council/sutton,London Borough of Sutton,01/01/2021,1309674,108.24 , GOOGLE  ADS8517410550,DECEMBER DA CAMPAIGN,Peoples Services Directorate,Advertising/Publicity (non Staff),F240,
http://opendatacommunities.org/id/london-borough-council/sutton,London Borough of Sutton,12/01/2021,1309674,28.98 , EFLORIST,FLOWERS,Peoples Services Directorate,Client Care/Assistance,H301,
http://opendatacommunities.org/id/london-borough-council/sutton,London Borough of Sutton,10/01/2021,1309674,21.90 , AMZNMKTPLACE,CLOCK REQUIRED FOR SUTTON FAMILY CENTRE (100%),Peoples Services Directorate,Personal Requisites,F106,
http://opendatacommunities.org/id/london-borough-council/sutton,London Borough of Sutton,13/01/2021,1309674,11.99 , ZOOM.US 888-799-9666,ZOOM SUBSCRIPTION FOR CHILDREN IN CARE COUNCIL,Peoples Services Directorate,LAC - Education,F269,
http://opendatacommunities.org/id/london-borough-council/sutton,London Borough of Sutton,11/01/2021,1309674,25.00 , OYSTER ONLINE,NEW OYSTER CARD PURCHASE,Peoples Services Directorate,Travelling and Subsistence Allowances,A530,
http://opendatacommunities.org/id/london-borough-council/sutton,London Borough of Sutton,11/01/2021,1309674,25.00 , OYSTER ONLINE,NEW OYSTER CARD PURCHASE,Peoples Services Directorate,Travelling and Subsistence Allowances,A530,
http://opendatacommunities.org/id/london-borough-council/sutton,London Borough of Sutton,14/01/2021,1309674,10.00 , AMAZON.CO.UK MV2708F04,SPLIT - AMAZON LOGO SQUID - AMAZON.CO.UK EGIFT VOUCHER (2%),Peoples Services Directorate,LAC - Education,F269,
http://opendatacommunities.org/id/london-borough-council/sutton,London Borough of Sutton,14/01/2021,1309674,10.00 , AMAZON.CO.UK MV2708F04,SPLIT - AMAZON LOGO SQUID - AMAZON.CO.UK EGIFT VOUCHER (2%),Peoples Services Directorate,LAC - Education,F269,
http://opendatacommunities.org/id/london-borough-council/sutton,London Borough of Sutton,14/01/2021,1309674,10.00 , AMAZON.CO.UK MV2708F04,SPLIT - AMAZON LOGO SQUID - AMAZON.CO.UK EGIFT VOUCHER (2%),Peoples Services Directorate,LAC - Education,F269,
http://opendatacommunities.org/id/london-borough-council/sutton,London Borough of Sutton,14/01/2021,1309674,10.00 , AMAZON.CO.UK MV2708F04,SPLIT - AMAZON LOGO SQUID - AMAZON.CO.UK EGIFT VOUCHER (2%),Peoples Services Directorate,LAC - Education,F269,
http://opendatacommunities.org/id/london-borough-council/sutton,London Borough of Sutton,14/01/2021,1309674,10.00 , AMAZON.CO.UK MV2708F04,SPLIT - AMAZON LOGO SQUID - AMAZON.CO.UK EGIFT VOUCHER (2%),Peoples Services Directorate,LAC - Education,F269,
http://opendatacommunities.org/id/london-borough-council/sutton,London Borough of Sutton,14/01/2021,1309674,10.00 , AMAZON.CO.UK MV2708F04,SPLIT - A FOR AMAZON - AMAZON.CO.UK EGIFT VOUCHER (2%),Peoples Services Directorate,LAC - Education,F269,
http://opendatacommunities.org/id/london-borough-council/sutton,London Borough of Sutton,14/01/2021,1309674,10.00 , AMAZON.CO.UK MV2708F04,SPLIT - AMAZON LOGO SQUID - AMAZON.CO.UK EGIFT VOUCHER (2%),Peoples Services Directorate,LAC - Education,F269,
http://opendatacommunities.org/id/london-borough-council/sutton,London Borough of Sutton,14/01/2021,1309674,10.00 , AMAZON.CO.UK MV2708F04,SPLIT - AMAZON LOGO SQUID - AMAZON.CO.UK EGIFT VOUCHER (2%),Peoples Services Directorate,LAC - Education,F269,
http://opendatacommunities.org/id/london-borough-council/sutton,London Borough of Sutton,13/01/2021,1309674,257.49 , AMZNMKTPLACE,"SPLIT - 15.6 INCH LAPTOP (INTEL CELERON 64-BIT, 8GB DDR3 RAM, 128GB SSD, 10000MAH BATTERY, HD WEBCAM, WINDOWS 10 OS PREINSTALLED, 1920 * 1080 FHD IPS DISPLAY) NOTEBOOK (100%)",Peoples Services Directorate,LAC - Education,F269,
http://opendatacommunities.org/id/london-borough-council/sutton,London Borough of Sutton,13/01/2021,1309674,3.95 , AMZNMKTPLACE,"SPLIT - HANDWRITING PRACTICE BOOK 2: KS2 ENGLISH, AGES 7-11 (100%)",Peoples Services Directorate,LAC - Education,F269,
http://opendatacommunities.org/id/london-borough-council/sutton,London Borough of Sutton,12/01/2021,1309674,33.15 , ROYAL MAIL GROUP LTD,POSTING LAPTOPS,Peoples Services Directorate,LAC - Education,F269,
http://opendatacommunities.org/id/london-borough-council/sutton,London Borough of Sutton,11/01/2021,1309674,68.40 , MARKALLENGROUP.COM/MA-,TES SHOW,Peoples Services Directorate,LAC - Education,F269,
http://opendatacommunities.org/id/london-borough-council/sutton,London Borough of Sutton,08/01/2021,1309674,30.00 , AMAZON.CO.UK MJ5CR3KV4,SPLIT - AMAZON LOGO SQUID - AMAZON.CO.UK EGIFT VOUCHER (9.38%),Peoples Services Directorate,LAC - Education,F269,
http://opendatacommunities.org/id/london-borough-council/sutton,London Borough of Sutton,08/01/2021,1309674,30.00 , AMAZON.CO.UK MJ5CR3KV4,SPLIT - AMAZON LOGO SQUID - AMAZON.CO.UK EGIFT VOUCHER (9.38%),Peoples Services Directorate,LAC - Education,F269,
http://opendatacommunities.org/id/london-borough-council/sutton,London Borough of Sutton,08/01/2021,1309674,30.00 , AMAZON.CO.UK MJ5CR3KV4,SPLIT - AMAZON LOGO SQUID - AMAZON.CO.UK EGIFT VOUCHER (9.38%),Peoples Services Directorate,LAC - Education,F269,
http://opendatacommunities.org/id/london-borough-council/sutton,London Borough of Sutton,08/01/2021,1309674,30.00 , AMAZON.CO.UK MJ5CR3KV4,SPLIT - AMAZON LOGO SQUID - AMAZON.CO.UK EGIFT VOUCHER (9.38%),Peoples Services Directorate,LAC - Education,F269,
http://opendatacommunities.org/id/london-borough-council/sutton,London Borough of Sutton,08/01/2021,1309674,30.00 , AMAZON.CO.UK MJ5CR3KV4,SPLIT - AMAZON LOGO SQUID - AMAZON.CO.UK EGIFT VOUCHER (9.38%),Peoples Services Directorate,LAC - Education,F269,
http://opendatacommunities.org/id/london-borough-council/sutton,London Borough of Sutton,08/01/2021,1309674,30.00 , AMAZON.CO.UK MJ5CR3KV4,SPLIT - AMAZON LOGO SQUID - AMAZON.CO.UK EGIFT VOUCHER (9.38%),Peoples Services Directorate,LAC - Education,F269,
http://opendatacommunities.org/id/london-borough-council/sutton,London Borough of Sutton,08/01/2021,1309674,30.00 , AMAZON.CO.UK MJ5CR3KV4,SPLIT - AMAZON LOGO SQUID - AMAZON.CO.UK EGIFT VOUCHER (9.38%),Peoples Services Directorate,LAC - Education,F269,
http://opendatacommunities.org/id/london-borough-council/sutton,London Borough of Sutton,08/01/2021,1309674,30.00 , AMAZON.CO.UK MJ5CR3KV4,SPLIT - AMAZON LOGO SQUID - AMAZON.CO.UK EGIFT VOUCHER (9.38%),Peoples Services Directorate,LAC - Education,F269,
http://opendatacommunities.org/id/london-borough-council/sutton,London Borough of Sutton,08/01/2021,1309674,20.00 , AMAZON.CO.UK MJ5CR3KV4,SPLIT - AMAZON LOGO SQUID - AMAZON.CO.UK EGIFT VOUCHER (6.25%),Peoples Services Directorate,LAC - Education,F269,
http://opendatacommunities.org/id/london-borough-council/sutton,London Borough of Sutton,08/01/2021,1309674,30.00 , AMAZON.CO.UK MJ5CR3KV4,SPLIT - AMAZON LOGO SQUID - AMAZON.CO.UK EGIFT VOUCHER (9.38%),Peoples Services Directorate,LAC - Education,F269,
http://opendatacommunities.org/id/london-borough-council/sutton,London Borough of Sutton,08/01/2021,1309674,30.00 , AMAZON.CO.UK MJ5CR3KV4,SPLIT - AMAZON LOGO SQUID - AMAZON.CO.UK EGIFT VOUCHER (9.33%),Peoples Services Directorate,LAC - Education,F269,
http://opendatacommunities.org/id/london-borough-council/sutton,London Borough of Sutton,06/01/2021,1309674,8.96 , AMAZON.CO.UK MJ56Q0DY4,SPLIT - SILVINE A5 NOTEBOOKS ASSORTED PASTEL COLOURS (PACK OF 10) (72.1%),Peoples Services Directorate,LAC - Education,F269,
http://opendatacommunities.org/id/london-borough-council/sutton,London Borough of Sutton,06/01/2021,1309674,3.47 , AMAZON.CO.UK MJ56Q0DY4,BALANCING ENTRY AMOUNT (27.9%),Peoples Services Directorate,LAC - Education,F269,
http://opendatacommunities.org/id/london-borough-council/sutton,London Borough of Sutton,06/01/2021,1309674,7.74 , AMAZON.CO.UK MJ9B26DE4,SPLIT - SILVINE EXERCISE BOOK RULED AND MARGIN 80 PAGES A4 PURPLE REF EX111 [PACK OF 10] (69.07%),Peoples Services Directorate,LAC - Education,F269,
http://opendatacommunities.org/id/london-borough-council/sutton,London Borough of Sutton,06/01/2021,1309674,3.47 , AMAZON.CO.UK MJ9B26DE4,BALANCING ENTRY AMOUNT (30.93%),Peoples Services Directorate,LAC - Education,F269,
http://opendatacommunities.org/id/london-borough-council/sutton,London Borough of Sutton,14/01/2021,1309674,10.00 , AMAZON.CO.UK MV2708F04,SPLIT - A FOR AMAZON - AMAZON.CO.UK EGIFT VOUCHER (2%),Peoples Services Directorate,LAC - Education,F269,
http://opendatacommunities.org/id/london-borough-council/sutton,London Borough of Sutton,14/01/2021,1309674,10.00 , AMAZON.CO.UK MV2708F04,SPLIT - AMAZON LOGO SQUID - AMAZON.CO.UK EGIFT VOUCHER (2%),Peoples Services Directorate,LAC - Education,F269,
http://opendatacommunities.org/id/london-borough-council/sutton,London Borough of Sutton,14/01/2021,1309674,10.00 , AMAZON.CO.UK MV2708F04,SPLIT - AMAZON LOGO SQUID - AMAZON.CO.UK EGIFT VOUCHER (2%),Peoples Services Directorate,LAC - Education,F269,
http://opendatacommunities.org/id/london-borough-council/sutton,London Borough of Sutton,14/01/2021,1309674,10.00 , AMAZON.CO.UK MV2708F04,SPLIT - AMAZON LOGO SQUID - AMAZON.CO.UK EGIFT VOUCHER (2%),Peoples Services Directorate,LAC - Education,F269,
http://opendatacommunities.org/id/london-borough-council/sutton,London Borough of Sutton,14/01/2021,1309674,10.00 , AMAZON.CO.UK MV2708F04,SPLIT - AMAZON LOGO SQUID - AMAZON.CO.UK EGIFT VOUCHER (2%),Peoples Services Directorate,LAC - Education,F269,
http://opendatacommunities.org/id/london-borough-council/sutton,London Borough of Sutton,14/01/2021,1309674,10.00 , AMAZON.CO.UK MV2708F04,SPLIT - AMAZON LOGO SQUID - AMAZON.CO.UK EGIFT VOUCHER (2%),Peoples Services Directorate,LAC - Education,F269,
http://opendatacommunities.org/id/london-borough-council/sutton,London Borough of Sutton,14/01/2021,1309674,10.00 , AMAZON.CO.UK MV2708F04,SPLIT - AMAZON LOGO SQUID - AMAZON.CO.UK EGIFT VOUCHER (2%),Peoples Services Directorate,LAC - Education,F269,
http://opendatacommunities.org/id/london-borough-council/sutton,London Borough of Sutton,06/01/2021,1309674,11.05 , ROYAL MAIL GROUP LTD,LAPTOP DELVIERY,Peoples Services Directorate,LAC - Education,F269,
http://opendatacommunities.org/id/london-borough-council/sutton,London Borough of Sutton,06/01/2021,1309674,44.20 , ROYAL MAIL GROUP LTD,LAPTOP POSTAGE,Peoples Services Directorate,LAC - Education,F269,
http://opendatacommunities.org/id/london-borough-council/sutton,London Borough of Sutton,14/01/2021,1309674,10.00 , AMAZON.CO.UK MV2708F04,SPLIT - A FOR AMAZON - AMAZON.CO.UK EGIFT VOUCHER (2%),Peoples Services Directorate,LAC - Education,F269,
http://opendatacommunities.org/id/london-borough-council/sutton,London Borough of Sutton,14/01/2021,1309674,10.00 , AMAZON.CO.UK MV2708F04,SPLIT - AMAZON LOGO SQUID - AMAZON.CO.UK EGIFT VOUCHER (2%),Peoples Services Directorate,LAC - Education,F269,
http://opendatacommunities.org/id/london-borough-council/sutton,London Borough of Sutton,14/01/2021,1309674,10.00 , AMAZON.CO.UK MV2708F04,SPLIT - AMAZON LOGO SQUID - AMAZON.CO.UK EGIFT VOUCHER (2%),Peoples Services Directorate,LAC - Education,F269,
http://opendatacommunities.org/id/london-borough-council/sutton,London Borough of Sutton,14/01/2021,1309674,10.00 , AMAZON.CO.UK MV2708F04,SPLIT - AMAZON LOGO SQUID - AMAZON.CO.UK EGIFT VOUCHER (2%),Peoples Services Directorate,LAC - Education,F269,
http://opendatacommunities.org/id/london-borough-council/sutton,London Borough of Sutton,14/01/2021,1309674,10.00 , AMAZON.CO.UK MV2708F04,SPLIT - A FOR AMAZON - AMAZON.CO.UK EGIFT VOUCHER (2%),Peoples Services Directorate,LAC - Education,F269,
http://opendatacommunities.org/id/london-borough-council/sutton,London Borough of Sutton,14/01/2021,1309674,10.00 , AMAZON.CO.UK MV2708F04,SPLIT - AMAZON LOGO SQUID - AMAZON.CO.UK EGIFT VOUCHER (2%),Peoples Services Directorate,LAC - Education,F269,
http://opendatacommunities.org/id/london-borough-council/sutton,London Borough of Sutton,14/01/2021,1309674,10.00 , AMAZON.CO.UK MV2708F04,SPLIT - AMAZON LOGO SQUID - AMAZON.CO.UK EGIFT VOUCHER (2%),Peoples Services Directorate,LAC - Education,F269,
http://opendatacommunities.org/id/london-borough-council/sutton,London Borough of Sutton,14/01/2021,1309674,10.00 , AMAZON.CO.UK MV2708F04,SPLIT - AMAZON LOGO SQUID - AMAZON.CO.UK EGIFT VOUCHER (2%),Peoples Services Directorate,LAC - Education,F269,
http://opendatacommunities.org/id/london-borough-council/sutton,London Borough of Sutton,14/01/2021,1309674,10.00 , AMAZON.CO.UK MV2708F04,SPLIT - AMAZON LOGO SQUID - AMAZON.CO.UK EGIFT VOUCHER (2%),Peoples Services Directorate,LAC - Education,F269,
http://opendatacommunities.org/id/london-borough-council/sutton,London Borough of Sutton,14/01/2021,1309674,10.00 , AMAZON.CO.UK MV2708F04,SPLIT - AMAZON LOGO SQUID - AMAZON.CO.UK EGIFT VOUCHER (2%),Peoples Services Directorate,LAC - Education,F269,
http://opendatacommunities.org/id/london-borough-council/sutton,London Borough of Sutton,14/01/2021,1309674,10.00 , AMAZON.CO.UK MV2708F04,SPLIT - A FOR AMAZON - AMAZON.CO.UK EGIFT VOUCHER (2%),Peoples Services Directorate,LAC - Education,F269,
http://opendatacommunities.org/id/london-borough-council/sutton,London Borough of Sutton,14/01/2021,1309674,10.00 , AMAZON.CO.UK MV2708F04,SPLIT - AMAZON LOGO SQUID - AMAZON.CO.UK EGIFT VOUCHER (2%),Peoples Services Directorate,LAC - Education,F269,
http://opendatacommunities.org/id/london-borough-council/sutton,London Borough of Sutton,14/01/2021,1309674,10.00 , AMAZON.CO.UK MV2708F04,SPLIT - AMAZON LOGO SQUID - AMAZON.CO.UK EGIFT VOUCHER (2%),Peoples Services Directorate,LAC - Education,F269,
http://opendatacommunities.org/id/london-borough-council/sutton,London Borough of Sutton,14/01/2021,1309674,10.00 , AMAZON.CO.UK MV2708F04,SPLIT - AMAZON LOGO SQUID - AMAZON.CO.UK EGIFT VOUCHER (2%),Peoples Services Directorate,LAC - Education,F269,
http://opendatacommunities.org/id/london-borough-council/sutton,London Borough of Sutton,14/01/2021,1309674,10.00 , AMAZON.CO.UK MV2708F04,SPLIT - AMAZON LOGO SQUID - AMAZON.CO.UK EGIFT VOUCHER (2%),Peoples Services Directorate,LAC - Education,F269,
http://opendatacommunities.org/id/london-borough-council/sutton,London Borough of Sutton,14/01/2021,1309674,10.00 , AMAZON.CO.UK MV2708F04,SPLIT - AMAZON LOGO SQUID - AMAZON.CO.UK EGIFT VOUCHER (2%),Peoples Services Directorate,LAC - Education,F269,
http://opendatacommunities.org/id/london-borough-council/sutton,London Borough of Sutton,14/01/2021,1309674,10.00 , AMAZON.CO.UK MV2708F04,SPLIT - AMAZON LOGO SQUID - AMAZON.CO.UK EGIFT VOUCHER (2%),Peoples Services Directorate,LAC - Education,F269,
http://opendatacommunities.org/id/london-borough-council/sutton,London Borough of Sutton,14/01/2021,1309674,10.00 , AMAZON.CO.UK MV2708F04,SPLIT - AMAZON LOGO SQUID - AMAZON.CO.UK EGIFT VOUCHER (2%),Peoples Services Directorate,LAC - Education,F269,
http://opendatacommunities.org/id/london-borough-council/sutton,London Borough of Sutton,14/01/2021,1309674,10.00 , AMAZON.CO.UK MV2708F04,SPLIT - AMAZON LOGO SQUID - AMAZON.CO.UK EGIFT VOUCHER (2%),Peoples Services Directorate,LAC - Education,F269,
http://opendatacommunities.org/id/london-borough-council/sutton,London Borough of Sutton,14/01/2021,1309674,10.00 , AMAZON.CO.UK MV2708F04,SPLIT - AMAZON LOGO SQUID - AMAZON.CO.UK EGIFT VOUCHER (2%),Peoples Services Directorate,LAC - Education,F269,
http://opendatacommunities.org/id/london-borough-council/sutton,London Borough of Sutton,14/01/2021,1309674,10.00 , AMAZON.CO.UK MV2708F04,SPLIT - AMAZON LOGO SQUID - AMAZON.CO.UK EGIFT VOUCHER (2%),Peoples Services Directorate,LAC - Education,F269,
http://opendatacommunities.org/id/london-borough-council/sutton,London Borough of Sutton,14/01/2021,1309674,10.00 , AMAZON.CO.UK MV2708F04,SPLIT - AMAZON LOGO SQUID - AMAZON.CO.UK EGIFT VOUCHER (2%),Peoples Services Directorate,LAC - Education,F269,
http://opendatacommunities.org/id/london-borough-council/sutton,London Borough of Sutton,14/01/2021,1309674,10.00 , AMAZON.CO.UK MV2708F04,SPLIT - AMAZON LOGO SQUID - AMAZON.CO.UK EGIFT VOUCHER (2%),Peoples Services Directorate,LAC - Education,F269,
http://opendatacommunities.org/id/london-borough-council/sutton,London Borough of Sutton,14/01/2021,1309674,10.00 , AMAZON.CO.UK MV2708F04,SPLIT - AMAZON LOGO SQUID - AMAZON.CO.UK EGIFT VOUCHER (2%),Peoples Services Directorate,LAC - Education,F269,
http://opendatacommunities.org/id/london-borough-council/sutton,London Borough of Sutton,14/01/2021,1309674,10.00 , AMAZON.CO.UK MV2708F04,SPLIT - AMAZON LOGO SQUID - AMAZON.CO.UK EGIFT VOUCHER (2%),Peoples Services Directorate,LAC - Education,F269,
http://opendatacommunities.org/id/london-borough-council/sutton,London Borough of Sutton,14/01/2021,1309674,10.00 , AMAZON.CO.UK MV2708F04,SPLIT - AMAZON LOGO SQUID - AMAZON.CO.UK EGIFT VOUCHER (2%),Peoples Services Directorate,LAC - Education,F269,
http://opendatacommunities.org/id/london-borough-council/sutton,London Borough of Sutton,14/01/2021,1309674,10.00 , AMAZON.CO.UK MV2708F04,SPLIT - AMAZON LOGO SQUID - AMAZON.CO.UK EGIFT VOUCHER (2%),Peoples Services Directorate,LAC - Education,F269,
http://opendatacommunities.org/id/london-borough-council/sutton,London Borough of Sutton,14/01/2021,1309674,10.00 , AMAZON.CO.UK MV2708F04,SPLIT - A FOR AMAZON - AMAZON.CO.UK EGIFT VOUCHER (2%),Peoples Services Directorate,LAC - Education,F269,
http://opendatacommunities.org/id/london-borough-council/sutton,London Borough of Sutton,14/01/2021,1309674,10.00 , AMAZON.CO.UK MV2708F04,SPLIT - AMAZON LOGO SQUID - AMAZON.CO.UK EGIFT VOUCHER (2%),Peoples Services Directorate,LAC - Education,F269,
http://opendatacommunities.org/id/london-borough-council/sutton,London Borough of Sutton,14/01/2021,1309674,10.00 , AMAZON.CO.UK MV2708F04,SPLIT - AMAZON LOGO SQUID - AMAZON.CO.UK EGIFT VOUCHER (2%),Peoples Services Directorate,LAC - Education,F269,
http://opendatacommunities.org/id/london-borough-council/sutton,London Borough of Sutton,14/01/2021,1309674,10.00 , AMAZON.CO.UK MV2708F04,SPLIT - AMAZON LOGO SQUID - AMAZON.CO.UK EGIFT VOUCHER (2%),Peoples Services Directorate,LAC - Education,F269,
http://opendatacommunities.org/id/london-borough-council/sutton,London Borough of Sutton,14/01/2021,1309674,10.00 , AMAZON.CO.UK MV2708F04,SPLIT - A FOR AMAZON - AMAZON.CO.UK EGIFT VOUCHER (2%),Peoples Services Directorate,LAC - Education,F269,
http://opendatacommunities.org/id/london-borough-council/sutton,London Borough of Sutton,14/01/2021,1309674,10.00 , AMAZON.CO.UK MV2708F04,SPLIT - AMAZON LOGO SQUID - AMAZON.CO.UK EGIFT VOUCHER (2%),Peoples Services Directorate,LAC - Education,F269,
http://opendatacommunities.org/id/london-borough-council/sutton,London Borough of Sutton,20/01/2021,1309674,10.00 , AMAZON.CO.UK MV4AQ9E04,SPLIT - AMAZON LOGO SQUID - AMAZON.CO.UK EGIFT VOUCHER (20%),Peoples Services Directorate,LAC - Education,F269,
http://opendatacommunities.org/id/london-borough-council/sutton,London Borough of Sutton,19/01/2021,1309674,11.05 , ROYAL MAIL GROUP LTD,LAPTOP POSTAGE,Peoples Services Directorate,LAC - Education,F269,
http://opendatacommunities.org/id/london-borough-council/sutton,London Borough of Sutton,14/01/2021,1309674,10.00 , AMAZON.CO.UK MV4RY6FD4,SPLIT - AMAZON LOGO SQUID - AMAZON.CO.UK EGIFT VOUCHER (3.13%),Peoples Services Directorate,LAC - Education,F269,
http://opendatacommunities.org/id/london-borough-council/sutton,London Borough of Sutton,14/01/2021,1309674,10.00 , AMAZON.CO.UK MV4RY6FD4,SPLIT - AMAZON LOGO SQUID - AMAZON.CO.UK EGIFT VOUCHER (3.13%),Peoples Services Directorate,LAC - Education,F269,
http://opendatacommunities.org/id/london-borough-council/sutton,London Borough of Sutton,14/01/2021,1309674,10.00 , AMAZON.CO.UK MV4RY6FD4,SPLIT - AMAZON LOGO SQUID - AMAZON.CO.UK EGIFT VOUCHER (3.13%),Peoples Services Directorate,LAC - Education,F269,
http://opendatacommunities.org/id/london-borough-council/sutton,London Borough of Sutton,14/01/2021,1309674,10.00 , AMAZON.CO.UK MV4RY6FD4,SPLIT - AMAZON LOGO SQUID - AMAZON.CO.UK EGIFT VOUCHER (3.13%),Peoples Services Directorate,LAC - Education,F269,
http://opendatacommunities.org/id/london-borough-council/sutton,London Borough of Sutton,14/01/2021,1309674,10.00 , AMAZON.CO.UK MV4RY6FD4,SPLIT - AMAZON LOGO SQUID - AMAZON.CO.UK EGIFT VOUCHER (3.13%),Peoples Services Directorate,LAC - Education,F269,
http://opendatacommunities.org/id/london-borough-council/sutton,London Borough of Sutton,14/01/2021,1309674,10.00 , AMAZON.CO.UK MV4RY6FD4,SPLIT - AMAZON LOGO SQUID - AMAZON.CO.UK EGIFT VOUCHER (3.13%),Peoples Services Directorate,LAC - Education,F269,
http://opendatacommunities.org/id/london-borough-council/sutton,London Borough of Sutton,14/01/2021,1309674,10.00 , AMAZON.CO.UK MV4RY6FD4,SPLIT - AMAZON LOGO SQUID - AMAZON.CO.UK EGIFT VOUCHER (3.13%),Peoples Services Directorate,LAC - Education,F269,
http://opendatacommunities.org/id/london-borough-council/sutton,London Borough of Sutton,14/01/2021,1309674,10.00 , AMAZON.CO.UK MV4RY6FD4,SPLIT - AMAZON LOGO SQUID - AMAZON.CO.UK EGIFT VOUCHER (3.13%),Peoples Services Directorate,LAC - Education,F269,
http://opendatacommunities.org/id/london-borough-council/sutton,London Borough of Sutton,14/01/2021,1309674,10.00 , AMAZON.CO.UK MV4RY6FD4,SPLIT - AMAZON LOGO SQUID - AMAZON.CO.UK EGIFT VOUCHER (3.13%),Peoples Services Directorate,LAC - Education,F269,
http://opendatacommunities.org/id/london-borough-council/sutton,London Borough of Sutton,14/01/2021,1309674,10.00 , AMAZON.CO.UK MV4RY6FD4,SPLIT - AMAZON LOGO SQUID - AMAZON.CO.UK EGIFT VOUCHER (3.13%),Peoples Services Directorate,LAC - Education,F269,
http://opendatacommunities.org/id/london-borough-council/sutton,London Borough of Sutton,14/01/2021,1309674,10.00 , AMAZON.CO.UK MV4RY6FD4,SPLIT - AMAZON LOGO SQUID - AMAZON.CO.UK EGIFT VOUCHER (3.13%),Peoples Services Directorate,LAC - Education,F269,
http://opendatacommunities.org/id/london-borough-council/sutton,London Borough of Sutton,14/01/2021,1309674,10.00 , AMAZON.CO.UK MV4RY6FD4,SPLIT - AMAZON LOGO SQUID - AMAZON.CO.UK EGIFT VOUCHER (3.13%),Peoples Services Directorate,LAC - Education,F269,
http://opendatacommunities.org/id/london-borough-council/sutton,London Borough of Sutton,14/01/2021,1309674,10.00 , AMAZON.CO.UK MV4RY6FD4,SPLIT - AMAZON LOGO SQUID - AMAZON.CO.UK EGIFT VOUCHER (3.13%),Peoples Services Directorate,LAC - Education,F269,
http://opendatacommunities.org/id/london-borough-council/sutton,London Borough of Sutton,14/01/2021,1309674,10.00 , AMAZON.CO.UK MV4RY6FD4,SPLIT - A FOR AMAZON - AMAZON.CO.UK EGIFT VOUCHER (3.13%),Peoples Services Directorate,LAC - Education,F269,
http://opendatacommunities.org/id/london-borough-council/sutton,London Borough of Sutton,14/01/2021,1309674,10.00 , AMAZON.CO.UK MV4RY6FD4,SPLIT - AMAZON LOGO SQUID - AMAZON.CO.UK EGIFT VOUCHER (3.13%),Peoples Services Directorate,LAC - Education,F269,
http://opendatacommunities.org/id/london-borough-council/sutton,London Borough of Sutton,14/01/2021,1309674,10.00 , AMAZON.CO.UK MV4RY6FD4,SPLIT - A FOR AMAZON - AMAZON.CO.UK EGIFT VOUCHER (3.13%),Peoples Services Directorate,LAC - Education,F269,
http://opendatacommunities.org/id/london-borough-council/sutton,London Borough of Sutton,14/01/2021,1309674,10.00 , AMAZON.CO.UK MV4RY6FD4,SPLIT - AMAZON LOGO SQUID - AMAZON.CO.UK EGIFT VOUCHER (3.13%),Peoples Services Directorate,LAC - Education,F269,
http://opendatacommunities.org/id/london-borough-council/sutton,London Borough of Sutton,14/01/2021,1309674,10.00 , AMAZON.CO.UK MV4RY6FD4,SPLIT - AMAZON LOGO SQUID - AMAZON.CO.UK EGIFT VOUCHER (3.13%),Peoples Services Directorate,LAC - Education,F269,
http://opendatacommunities.org/id/london-borough-council/sutton,London Borough of Sutton,14/01/2021,1309674,10.00 , AMAZON.CO.UK MV4RY6FD4,SPLIT - AMAZON LOGO SQUID - AMAZON.CO.UK EGIFT VOUCHER (3.13%),Peoples Services Directorate,LAC - Education,F269,
http://opendatacommunities.org/id/london-borough-council/sutton,London Borough of Sutton,14/01/2021,1309674,10.00 , AMAZON.CO.UK MV4RY6FD4,SPLIT - AMAZON LOGO SQUID - AMAZON.CO.UK EGIFT VOUCHER (3.13%),Peoples Services Directorate,LAC - Education,F269,
http://opendatacommunities.org/id/london-borough-council/sutton,London Borough of Sutton,14/01/2021,1309674,10.00 , AMAZON.CO.UK MV4RY6FD4,SPLIT - AMAZON LOGO SQUID - AMAZON.CO.UK EGIFT VOUCHER (3.13%),Peoples Services Directorate,LAC - Education,F269,
http://opendatacommunities.org/id/london-borough-council/sutton,London Borough of Sutton,14/01/2021,1309674,10.00 , AMAZON.CO.UK MV4RY6FD4,SPLIT - AMAZON LOGO SQUID - AMAZON.CO.UK EGIFT VOUCHER (3.13%),Peoples Services Directorate,LAC - Education,F269,
http://opendatacommunities.org/id/london-borough-council/sutton,London Borough of Sutton,14/01/2021,1309674,10.00 , AMAZON.CO.UK MV4RY6FD4,SPLIT - AMAZON LOGO SQUID - AMAZON.CO.UK EGIFT VOUCHER (3.13%),Peoples Services Directorate,LAC - Education,F269,
http://opendatacommunities.org/id/london-borough-council/sutton,London Borough of Sutton,14/01/2021,1309674,10.00 , AMAZON.CO.UK MV4RY6FD4,SPLIT - AMAZON LOGO SQUID - AMAZON.CO.UK EGIFT VOUCHER (3.13%),Peoples Services Directorate,LAC - Education,F269,
http://opendatacommunities.org/id/london-borough-council/sutton,London Borough of Sutton,14/01/2021,1309674,10.00 , AMAZON.CO.UK MV4RY6FD4,SPLIT - AMAZON LOGO SQUID - AMAZON.CO.UK EGIFT VOUCHER (3.13%),Peoples Services Directorate,LAC - Education,F269,
http://opendatacommunities.org/id/london-borough-council/sutton,London Borough of Sutton,14/01/2021,1309674,10.00 , AMAZON.CO.UK MV4RY6FD4,SPLIT - AMAZON LOGO SQUID - AMAZON.CO.UK EGIFT VOUCHER (3.13%),Peoples Services Directorate,LAC - Education,F269,
http://opendatacommunities.org/id/london-borough-council/sutton,London Borough of Sutton,14/01/2021,1309674,10.00 , AMAZON.CO.UK MV4RY6FD4,SPLIT - AMAZON LOGO SQUID - AMAZON.CO.UK EGIFT VOUCHER (3.13%),Peoples Services Directorate,LAC - Education,F269,
http://opendatacommunities.org/id/london-borough-council/sutton,London Borough of Sutton,14/01/2021,1309674,10.00 , AMAZON.CO.UK MV4RY6FD4,SPLIT - AMAZON LOGO SQUID - AMAZON.CO.UK EGIFT VOUCHER (3.13%),Peoples Services Directorate,LAC - Education,F269,
http://opendatacommunities.org/id/london-borough-council/sutton,London Borough of Sutton,14/01/2021,1309674,10.00 , AMAZON.CO.UK MV4RY6FD4,SPLIT - AMAZON LOGO SQUID - AMAZON.CO.UK EGIFT VOUCHER (3.13%),Peoples Services Directorate,LAC - Education,F269,
http://opendatacommunities.org/id/london-borough-council/sutton,London Borough of Sutton,14/01/2021,1309674,10.00 , AMAZON.CO.UK MV4RY6FD4,SPLIT - A FOR AMAZON - AMAZON.CO.UK EGIFT VOUCHER (3.13%),Peoples Services Directorate,LAC - Education,F269,
http://opendatacommunities.org/id/london-borough-council/sutton,London Borough of Sutton,14/01/2021,1309674,10.00 , AMAZON.CO.UK MV4RY6FD4,SPLIT - AMAZON LOGO SQUID - AMAZON.CO.UK EGIFT VOUCHER (3.13%),Peoples Services Directorate,LAC - Education,F269,
http://opendatacommunities.org/id/london-borough-council/sutton,London Borough of Sutton,14/01/2021,1309674,10.00 , AMAZON.CO.UK MV4RY6FD4,SPLIT - AMAZON LOGO SQUID - AMAZON.CO.UK EGIFT VOUCHER (2.97%),Peoples Services Directorate,LAC - Education,F269,
http://opendatacommunities.org/id/london-borough-council/sutton,London Borough of Sutton,14/01/2021,1309674,10.00 , AMAZON.CO.UK MV2708F04,SPLIT - AMAZON LOGO SQUID - AMAZON.CO.UK EGIFT VOUCHER (2%),Peoples Services Directorate,LAC - Education,F269,
http://opendatacommunities.org/id/london-borough-council/sutton,London Borough of Sutton,14/01/2021,1309674,10.00 , AMAZON.CO.UK MV2708F04,SPLIT - AMAZON LOGO SQUID - AMAZON.CO.UK EGIFT VOUCHER (2%),Peoples Services Directorate,LAC - Education,F269,
http://opendatacommunities.org/id/london-borough-council/sutton,London Borough of Sutton,26/01/2021,1309674,7.24 , AMZNMKTPLACE,SPLIT - ROYAL & LANGNICKEL GOLD ENGRAVING ART A4 GOLD AFRICAN ANIMALS DESIGNED PAINTING SET (PACK OF 3) (19.73%),Peoples Services Directorate,LAC - Education,F269,
http://opendatacommunities.org/id/london-borough-council/sutton,London Borough of Sutton,26/01/2021,1309674,7.49 , AMZNMKTPLACE,SPLIT - ROYAL & LANGNICKEL SILVER ENGRAVING ART A4 SILVER SEA LIFE DESIGNED PAINTING SET (PACK OF 3) (20.41%),Peoples Services Directorate,LAC - Education,F269,
http://opendatacommunities.org/id/london-borough-council/sutton,London Borough of Sutton,26/01/2021,1309674,11.39 , AMZNMKTPLACE,SPLIT - 365 DAYS OF ART: A CREATIVE EXERCISE FOR EVERY DAY OF THE YEAR (ADULT ART ACTIVITY AND COLOURING BOOK) (25.86%),Peoples Services Directorate,LAC - Education,F269,
http://opendatacommunities.org/id/london-borough-council/sutton,London Borough of Sutton,26/01/2021,1309674,9.16 , AMZNMKTPLACE,SPLIT - COLOURFUL ORIGAMI KIT WITH 80-PAGE INSTRUCTIONAL BOOK 154 DOUBLE SIDED VIVID ORIGAMI PAPERS 72 PROJECTS WITH 10 BLANK ORIGAMI FOR KIDS BEGINNERS TRAINNING AND SCHOOL CRAFT LESSONS (24.95%),Peoples Services Directorate,LAC - Education,F269,
http://opendatacommunities.org/id/london-borough-council/sutton,London Borough of Sutton,26/01/2021,1309674,3.32 , AMZNMKTPLACE,SPLIT - ROYAL BRUSH FOIL ENGRAVING ART SCRAPER TOOLS 4/PKG- (9.05%),Peoples Services Directorate,LAC - Education,F269,
http://opendatacommunities.org/id/london-borough-council/sutton,London Borough of Sutton,24/01/2021,1309674,12.99 , AMZNMKTPLACE,SPLIT - CRAFTS 4 ALL PAINT BRUSHES PROFESSIONAL PAINT FINE TIP POINTED BRUSH TIP NYLON HAIR ARTIST ACRYLIC & WATERCOLOR PAINTS SET ROUND TIPS - SET OF 18 (19.96%),Peoples Services Directorate,LAC - Education,F269,
http://opendatacommunities.org/id/london-borough-council/sutton,London Borough of Sutton,24/01/2021,1309674,4.22 , AMZNMKTPLACE,"SPLIT - PRITT GLUE STICK, SAFE & CHILD-FRIENDLY CRAFT GLUE FOR ARTS & CRAFTS ACTIVITIES, STRONG-HOLD ADHESIVE FOR SCHOOL & OFFICE SUPPLIES, 5X11G PRITT STICK (6.49%)",Peoples Services Directorate,LAC - Education,F269,
http://opendatacommunities.org/id/london-borough-council/sutton,London Borough of Sutton,24/01/2021,1309674,20.76 , AMZNMKTPLACE,"SPLIT - CIRQUE DU FREAK SERIES - COMPLETE 12 BOOK COLLECTION - KILLERS OF THE DAWN, LORD OF THE SHADOWS, TRIALS OF DEATH, SONS OF DESTINY, LIVING NIGHTMARE, V (26.58%)",Peoples Services Directorate,LAC - Education,F269,
http://opendatacommunities.org/id/london-borough-council/sutton,London Borough of Sutton,24/01/2021,1309674,8.32 , AMZNMKTPLACE,SPLIT - DALER ROWNEY SIMPLY ACRYLIC PAD A4 (12.79%),Peoples Services Directorate,LAC - Education,F269,
http://opendatacommunities.org/id/london-borough-council/sutton,London Borough of Sutton,24/01/2021,1309674,8.33 , AMZNMKTPLACE,"SPLIT - STAEDTLER 323 TRIPLUS COLOUR FIBRE-TIP PENS, 1.0 MM, ASSORTED COLOURS, PACK OF 20 (12.8%)",Peoples Services Directorate,LAC - Education,F269,
http://opendatacommunities.org/id/london-borough-council/sutton,London Borough of Sutton,24/01/2021,1309674,15.57 , AMZNMKTPLACE,"SPLIT - ACRYLIC PAINTS SET, 24 COLORS HIGH COLOUR PIGMENT CONTENT, NON-TOXIC, IDEAL ACRYLIC ART SET FOR WALL ART, MURALS, LANDSCAPE PORTRAIT PAINTINGS CANVAS, WOOD, ROCK PAINTING, SCHOOL CLASSROOM ESSENTIALS (23.93%)",Peoples Services Directorate,LAC - Education,F269,
http://opendatacommunities.org/id/london-borough-council/sutton,London Borough of Sutton,24/01/2021,1309674,(1.67), AMZNMKTPLACE,BALANCING ENTRY AMOUNT (-7.67%),Peoples Services Directorate,LAC - Education,F269,
http://opendatacommunities.org/id/london-borough-council/sutton,London Borough of Sutton,22/01/2021,1309674,15.79 , AMZNMKTPLACE,SPLIT - FABER-CASTELL COLOUR PENCILS (PACK OF 60) (100%),Peoples Services Directorate,LAC - Education,F269,
http://opendatacommunities.org/id/london-borough-council/sutton,London Borough of Sutton,22/01/2021,1309674,2.49 , AMZNMKTPLACE,SPLIT - PIXEL A4 80GSM ASSORTED COLOURED BRIGHT PAPER 100 SHEETS (100%),Peoples Services Directorate,LAC - Education,F269,
http://opendatacommunities.org/id/london-borough-council/sutton,London Borough of Sutton,21/01/2021,1309674,3.29 , AMZNMKTPLACE,SPLIT - MAPED OFFICE ADVANCED SYMMETRICAL SCISSORS 17CM (100%),Peoples Services Directorate,LAC - Education,F269,
http://opendatacommunities.org/id/london-borough-council/sutton,London Borough of Sutton,20/01/2021,1309674,10.00 , AMAZON.CO.UK MV4AQ9E04,SPLIT - AMAZON LOGO SQUID - AMAZON.CO.UK EGIFT VOUCHER (20%),Peoples Services Directorate,LAC - Education,F269,
http://opendatacommunities.org/id/london-borough-council/sutton,London Borough of Sutton,20/01/2021,1309674,10.00 , AMAZON.CO.UK MV4AQ9E04,SPLIT - AMAZON LOGO SQUID - AMAZON.CO.UK EGIFT VOUCHER (20%),Peoples Services Directorate,LAC - Education,F269,
http://opendatacommunities.org/id/london-borough-council/sutton,London Borough of Sutton,20/01/2021,1309674,10.00 , AMAZON.CO.UK MV4AQ9E04,SPLIT - AMAZON LOGO SQUID - AMAZON.CO.UK EGIFT VOUCHER (20%),Peoples Services Directorate,LAC - Education,F269,
http://opendatacommunities.org/id/london-borough-council/sutton,London Borough of Sutton,20/01/2021,1309674,10.00 , AMAZON.CO.UK MV4AQ9E04,SPLIT - AMAZON LOGO SQUID - AMAZON.CO.UK EGIFT VOUCHER (20%),Peoples Services Directorate,LAC - Education,F269,
http://opendatacommunities.org/id/london-borough-council/sutton,London Borough of Sutton,25/01/2021,1309674,1.25 , FACEBK  Z7EUUXSJ72,FACEBOOK ADVERTISING (LIBRARIES),Health and Wellbeing Directorate,Advertising/Publicity (non Staff),F240,
http://opendatacommunities.org/id/london-borough-council/sutton,London Borough of Sutton,03/01/2021,1309674,8.32 , SPOTIFY UK,MUSIC FOR WEDDINGS AND CITIZENSHIP,Resources Directorate,Subscriptions - General,F450,
http://opendatacommunities.org/id/london-borough-council/sutton,London Borough of Sutton,21/01/2021,1309674,5.75 , WILKO RETAIL LIMITED,ANTI BAC WIPES AND TISSUES,Resources Directorate,Miscellaneous Expenses,F620,
http://opendatacommunities.org/id/london-borough-council/sutton,London Borough of Sutton,12/01/2021,1309674,96.00 , SLI DO,ANNUAL SLIDO SUBSCRIPTION FOR INTEGRATED INTERACTIVE POLLING INTO GOOGLE SLIDES. USED FOR LOCAL COMMITTEES TO ENABLE US TO ENGAGE WITH RESIDENTS ON THE CLIMATE EMERGENCY.,"Environment, Housing & Regeneration Directorate",Community Initiatives,F322,
http://opendatacommunities.org/id/london-borough-council/sutton,London Borough of Sutton,20/01/2021,1309674,11.02 , MINICABIT,CAB NEEDED FOR WORKER TO COMPLETE ONSITE DUTIES,Resources Directorate,Travelling and Subsistence Allowances,A530,
http://opendatacommunities.org/id/london-borough-council/sutton,London Borough of Sutton,19/01/2021,1309674,11.48 , MINICABIT,CAB NEEDED FOR WORKER TO COMPLETE ONSITE DUTIES,Resources Directorate,Travelling and Subsistence Allowances,A530,
http://opendatacommunities.org/id/london-borough-council/sutton,London Borough of Sutton,12/01/2021,1309674,22.51 , MINICABIT,TAXI REQUIRED FOR WORKER TO COMPLETE ONSITE DUTIES,Resources Directorate,Travelling and Subsistence Allowances,A530,
http://opendatacommunities.org/id/london-borough-council/sutton,London Borough of Sutton,08/01/2021,1309674,13.90 , AMZNMKTPLACE AMAZON.CO,FACE MASKS REQUIRED FOR WORKERS ATTENDING SITES (100%),Resources Directorate,Personal Requisites,F106,
http://opendatacommunities.org/id/london-borough-council/sutton,London Borough of Sutton,07/01/2021,1309674,33.56 , ETSY.COM - STYLEDBYFIF,FACE MASKS REQUIRED FOR WORKERS ATTENDING SITE,Resources Directorate,Personal Requisites,F106,
http://opendatacommunities.org/id/london-borough-council/sutton,London Borough of Sutton,05/01/2021,1309674,27.78 , AMZNMKTPLACE AMAZON.CO,HEADSET REQUIRED FOR ONLINE MEETINGS (86.98%),Resources Directorate,Personal Requisites,F106,
http://opendatacommunities.org/id/london-borough-council/sutton,London Borough of Sutton,05/01/2021,1309674,4.16 , AMZNMKTPLACE AMAZON.CO,BALANCING ENTRY AMOUNT (13.02%),Resources Directorate,Personal Requisites,F106,
http://opendatacommunities.org/id/london-borough-council/sutton,London Borough of Sutton,06/01/2021,1309674,12.50 , EXPRESS CARS,TRANSPORT REQUIRED FOR WORKER TO COMPLETE DUTIES ON SITE,Resources Directorate,C.C.A Travel & Subsistance,H212,
http://opendatacommunities.org/id/london-borough-council/sutton,London Borough of Sutton,06/01/2021,1309674,21.71 , MINICABIT,TRANSPORT REQUIRED FOR WORKER TO COMPLETE DUTIES ON SITE,Resources Directorate,C.C.A Travel & Subsistance,H212,
http://opendatacommunities.org/id/london-borough-council/sutton,London Borough of Sutton,23/01/2021,1309674,50.62 , FACEBK 2K6VR2KAL2,HATE CRIME ADS,Resources Directorate,Corporate Publicity,F356,
http://opendatacommunities.org/id/london-borough-council/sutton,London Borough of Sutton,20/01/2021,1309674,268.73 , FACEBK XDBGT23BL2,SPLIT - HATE CRIME ADS (89.58%),Resources Directorate,Corporate Publicity,F356,
http://opendatacommunities.org/id/london-borough-council/sutton,London Borough of Sutton,20/01/2021,1309674,25.00 , FACEBK XDBGT23BL2,SPLIT - EU SETTLEMENT ADS (8.33%),Resources Directorate,Corporate Publicity,F356,
http://opendatacommunities.org/id/london-borough-council/sutton,London Borough of Sutton,08/01/2021,1309674,108.30 , FACEBK Z4F8F2KAL2,SPLIT - HATE CRIME COMMS (54.15%),Resources Directorate,Corporate Publicity,F356,
http://opendatacommunities.org/id/london-borough-council/sutton,London Borough of Sutton,09/01/2021,1309674,15.00 , BUFFER PUBLISH PRO MO,SPLIT - PRO8 V1 - MONTHLY (135.38%),Resources Directorate,Corporate Publicity,F356,
http://opendatacommunities.org/id/london-borough-council/sutton,London Borough of Sutton,09/01/2021,1309674,(3.92), BUFFER PUBLISH PRO MO,BALANCING ENTRY AMOUNT (-106.14%),Resources Directorate,Corporate Publicity,F356,
http://opendatacommunities.org/id/london-borough-council/sutton,London Borough of Sutton,11/01/2021,1309674,0.30 , BUFFER PUBLISH PRO YR,LBS SOCIAL MEDIA TOOL SUBSCRIPTION.,Resources Directorate,Subscriptions - General,F450,
http://opendatacommunities.org/id/london-borough-council/sutton,London Borough of Sutton,24/01/2021,1309674,183.00 , CHARTERED MANAGEME,CMI MEMBERSHIP - MD,"Environment, Housing & Regeneration Directorate",Subscriptions - General,F450,
http://opendatacommunities.org/id/london-borough-council/sutton,London Borough of Sutton,15/01/2021,1309674,6.78 , MAILCHIMP    MONTHLY,WEB HOSTING,Resources Directorate,Fees - Computer Software,F384,
http://opendatacommunities.org/id/london-borough-council/sutton,London Borough of Sutton,14/01/2021,1309674,246.69 , MAILCHIMP    MONTHLY,WEB HOSTING,Resources Directorate,Fees - Computer Software,F384,
http://opendatacommunities.org/id/london-borough-council/sutton,London Borough of Sutton,29/12/2020,1309674,204.00 , CURRYS ONLINE,CL&G,Resources Directorate,Grants,F473,
http://opendatacommunities.org/id/london-borough-council/sutton,London Borough of Sutton,25/01/2021,1309674,179.99 , ARGOS LTD,CL&G,Resources Directorate,Grants,F473,
http://opendatacommunities.org/id/london-borough-council/sutton,London Borough of Sutton,25/01/2021,1309674,103.95 , ARGOS LTD,CL&G,Resources Directorate,Grants,F473,
http://opendatacommunities.org/id/london-borough-council/sutton,London Borough of Sutton,22/01/2021,1309674,284.00 , CURRYS ONLINE,CL&G,Resources Directorate,Grants,F473,
http://opendatacommunities.org/id/london-borough-council/sutton,London Borough of Sutton,22/01/2021,1309674,72.95 , ARGOS LTD,CL&G,Resources Directorate,Grants,F473,
http://opendatacommunities.org/id/london-borough-council/sutton,London Borough of Sutton,22/01/2021,1309674,284.00 , CURRYS ONLINE,CL&G,Resources Directorate,Grants,F473,
http://opendatacommunities.org/id/london-borough-council/sutton,London Borough of Sutton,22/01/2021,1309674,668.98 , ARGOS LTD,CL&G,Resources Directorate,Grants,F473,
http://opendatacommunities.org/id/london-borough-council/sutton,London Borough of Sutton,22/01/2021,1309674,448.99 , CURRYS ONLINE,CL&G,Resources Directorate,Grants,F473,
http://opendatacommunities.org/id/london-borough-council/sutton,London Borough of Sutton,22/01/2021,1309674,553.98 , CURRYS ONLINE,CL&G,Resources Directorate,Grants,F473,
http://opendatacommunities.org/id/london-borough-council/sutton,London Borough of Sutton,15/01/2021,1309674,394.98 , CURRYS ONLINE,CL&G,Resources Directorate,Grants,F473,
http://opendatacommunities.org/id/london-borough-council/sutton,London Borough of Sutton,15/01/2021,1309674,369.98 , ARGOS LTD,CL&G,Resources Directorate,Grants,F473,
http://opendatacommunities.org/id/london-borough-council/sutton,London Borough of Sutton,15/01/2021,1309674,259.00 , CURRYS ONLINE,CL&G,Resources Directorate,Grants,F473,
http://opendatacommunities.org/id/london-borough-council/sutton,London Borough of Sutton,15/01/2021,1309674,179.99 , ARGOS LTD,CL&G,Resources Directorate,Grants,F473,
http://opendatacommunities.org/id/london-borough-council/sutton,London Borough of Sutton,22/01/2021,1309674,448.99 , CURRYS ONLINE,CL&G,Resources Directorate,Grants,F473,
http://opendatacommunities.org/id/london-borough-council/sutton,London Borough of Sutton,22/01/2021,1309674,448.99 , CURRYS ONLINE,CL&G,Resources Directorate,Grants,F473,
http://opendatacommunities.org/id/london-borough-council/sutton,London Borough of Sutton,22/01/2021,1309674,398.99 , ARGOS LTD,CL&G,Resources Directorate,Grants,F473,
http://opendatacommunities.org/id/london-borough-council/sutton,London Borough of Sutton,22/01/2021,1309674,152.95 , ARGOS LTD,CL&G,Resources Directorate,Grants,F473,
http://opendatacommunities.org/id/london-borough-council/sutton,London Borough of Sutton,21/01/2021,1309674,284.00 , CURRYS ONLINE,CL&G,Resources Directorate,Grants,F473,
http://opendatacommunities.org/id/london-borough-council/sutton,London Borough of Sutton,21/01/2021,1309674,179.99 , ARGOS LTD,CL&G,Resources Directorate,Grants,F473,
http://opendatacommunities.org/id/london-borough-council/sutton,London Borough of Sutton,21/01/2021,1309674,620.93 , ARGOS LTD,CL&G,Resources Directorate,Grants,F473,
http://opendatacommunities.org/id/london-borough-council/sutton,London Borough of Sutton,20/01/2021,1309674,479.98 , CURRYS ONLINE,CL&G,Resources Directorate,Grants,F473,
http://opendatacommunities.org/id/london-borough-council/sutton,London Borough of Sutton,19/01/2021,1309674,525.94 , ARGOS LTD,CL&G,Resources Directorate,Grants,F473,
http://opendatacommunities.org/id/london-borough-council/sutton,London Borough of Sutton,19/01/2021,1309674,255.95 , ARGOS LTD,CL&G,Resources Directorate,Grants,F473,
http://opendatacommunities.org/id/london-borough-council/sutton,London Borough of Sutton,18/01/2021,1309674,212.95 , ARGOS LTD,CL&G,Resources Directorate,Grants,F473,
http://opendatacommunities.org/id/london-borough-council/sutton,London Borough of Sutton,18/01/2021,1309674,384.98 , CURRYS ONLINE,CL&G,Resources Directorate,Grants,F473,
http://opendatacommunities.org/id/london-borough-council/sutton,London Borough of Sutton,18/01/2021,1309674,156.94 , ARGOS LTD,CL&G,Resources Directorate,Grants,F473,
http://opendatacommunities.org/id/london-borough-council/sutton,London Borough of Sutton,18/01/2021,1309674,289.00 , CURRYS ONLINE,CL&G,Resources Directorate,Grants,F473,
http://opendatacommunities.org/id/london-borough-council/sutton,London Borough of Sutton,18/01/2021,1309674,305.95 , ARGOS LTD,CL&G,Resources Directorate,Grants,F473,
http://opendatacommunities.org/id/london-borough-council/sutton,London Borough of Sutton,08/01/2021,1309674,219.99 , ARGOS LTD,CL&G,Resources Directorate,Grants,F473,
http://opendatacommunities.org/id/london-borough-council/sutton,London Borough of Sutton,08/01/2021,1309674,132.95 , ARGOS LTD,CL&G,Resources Directorate,Grants,F473,
http://opendatacommunities.org/id/london-borough-council/sutton,London Borough of Sutton,06/01/2021,1309674,309.99 , CURRYS ONLINE,CL&G,Resources Directorate,Grants,F473,
http://opendatacommunities.org/id/london-borough-council/sutton,London Borough of Sutton,06/01/2021,1309674,399.00 , CURRYS ONLINE,CL&G,Resources Directorate,Grants,F473,
http://opendatacommunities.org/id/london-borough-council/sutton,London Borough of Sutton,06/01/2021,1309674,(100.00), CURRYS ONLINE,CL&G,Resources Directorate,Grants,F473,
http://opendatacommunities.org/id/london-borough-council/sutton,London Borough of Sutton,05/01/2021,1309674,399.00 , CURRYS ONLINE,CL&G,Resources Directorate,Grants,F473,
http://opendatacommunities.org/id/london-borough-council/sutton,London Borough of Sutton,05/01/2021,1309674,305.95 , ARGOS LTD,CL&G,Resources Directorate,Grants,F473,
http://opendatacommunities.org/id/london-borough-council/sutton,London Borough of Sutton,05/01/2021,1309674,304.99 , CURRYS ONLINE,CL&G,Resources Directorate,Grants,F473,
http://opendatacommunities.org/id/london-borough-council/sutton,London Borough of Sutton,05/01/2021,1309674,366.95 , ARGOS LTD,CL&G,Resources Directorate,Grants,F473,
http://opendatacommunities.org/id/london-borough-council/sutton,London Borough of Sutton,04/01/2021,1309674,318.99 , ARGOS LTD,CL&G,Resources Directorate,Grants,F473,
http://opendatacommunities.org/id/london-borough-council/sutton,London Borough of Sutton,18/01/2021,1309674,543.99 , CURRYS ONLINE,CL&G,Resources Directorate,Grants,F473,
http://opendatacommunities.org/id/london-borough-council/sutton,London Borough of Sutton,15/01/2021,1309674,285.95 , ARGOS LTD,CL&G,Resources Directorate,Grants,F473,
http://opendatacommunities.org/id/london-borough-council/sutton,London Borough of Sutton,29/12/2020,1309674,274.95 , ARGOS LTD,PURCHASE OF GOODS FOR CRISIS LOAN AND GRANT SCHEME,Resources Directorate,Grants,F473,
http://opendatacommunities.org/id/london-borough-council/sutton,London Borough of Sutton,29/12/2020,1309674,293.95 , ARGOS LTD,PURCHASE OF GOODS FOR CRISIS LOAN AND GRANT SCHEME,Resources Directorate,Grants,F473,
http://opendatacommunities.org/id/london-borough-council/sutton,London Borough of Sutton,29/12/2020,1309674,259.00 , CURRYS ONLINE,PURCHASE OF GOODS FOR CRISIS LOAN AND GRANT SCHEME,Resources Directorate,Grants,F473,
http://opendatacommunities.org/id/london-borough-council/sutton,London Borough of Sutton,29/12/2020,1309674,(498.99), ARGOS LTD,CREDIT FOR PURCHASE OF GOODS FOR CRISIS LOAN AND GRANT SCHEME,Resources Directorate,Grants,F473,
http://opendatacommunities.org/id/london-borough-council/sutton,London Borough of Sutton,15/01/2021,1309674,205.95 , ARGOS LTD,CL&G,Resources Directorate,Grants,F473,
http://opendatacommunities.org/id/london-borough-council/sutton,London Borough of Sutton,14/01/2021,1309674,414.98 , CURRYS ONLINE,CL&G,Resources Directorate,Grants,F473,
http://opendatacommunities.org/id/london-borough-council/sutton,London Borough of Sutton,14/01/2021,1309674,90.00 , CURRYS SUPERSTORE,CL&G,Resources Directorate,Grants,F473,
http://opendatacommunities.org/id/london-borough-council/sutton,London Borough of Sutton,14/01/2021,1309674,219.00 , CURRYS ONLINE,CL&G,Resources Directorate,Grants,F473,
http://opendatacommunities.org/id/london-borough-council/sutton,London Borough of Sutton,13/01/2021,1309674,319.00 , CURRYS ONLINE,CL&G,Resources Directorate,Grants,F473,
http://opendatacommunities.org/id/london-borough-council/sutton,London Borough of Sutton,13/01/2021,1309674,271.95 , ARGOS LTD,CL&G,Resources Directorate,Grants,F473,
http://opendatacommunities.org/id/london-borough-council/sutton,London Borough of Sutton,12/01/2021,1309674,294.00 , CURRYS ONLINE,CL&G,Resources Directorate,Grants,F473,
http://opendatacommunities.org/id/london-borough-council/sutton,London Borough of Sutton,12/01/2021,1309674,305.95 , ARGOS LTD,CL&G,Resources Directorate,Grants,F473,
http://opendatacommunities.org/id/london-borough-council/sutton,London Borough of Sutton,11/01/2021,1309674,199.99 , CURRYS ONLINE,CL&G,Resources Directorate,Grants,F473,
http://opendatacommunities.org/id/london-borough-council/sutton,London Borough of Sutton,11/01/2021,1309674,199.99 , ARGOS LTD,CL&G,Resources Directorate,Grants,F473,
http://opendatacommunities.org/id/london-borough-council/sutton,London Borough of Sutton,11/01/2021,1309674,92.95 , ARGOS LTD,CL&G,Resources Directorate,Grants,F473,
http://opendatacommunities.org/id/london-borough-council/sutton,London Borough of Sutton,11/01/2021,1309674,809.65 , M & S CARPETS,CL&G,Resources Directorate,Grants,F473,
http://opendatacommunities.org/id/london-borough-council/sutton,London Borough of Sutton,15/01/2021,1309674,124.99 , AMZNMKTPLACE," FLEXISPOT HEIGHT ADJUSTABLE 35"" STAND UP DESK CONVERTER",Resources Directorate,Furniture - Purchase,F080,
http://opendatacommunities.org/id/london-borough-council/sutton,London Borough of Sutton,22/01/2021,1309674,133.33 , ACCESS SUTTON,STORAGE REQUIRED FOR CLIENT,Peoples Services Directorate,Client Care/Assistance,H301,
http://opendatacommunities.org/id/london-borough-council/sutton,London Borough of Sutton,02/01/2021,1309674,89.03 , STORAGEMART UK A-89EDE,STORAGE FOR CLIENT,Peoples Services Directorate,Personal Requisites,F106,
http://opendatacommunities.org/id/london-borough-council/sutton,London Borough of Sutton,25/01/2021,1309674,"1,666.67 ", BIG YELLOW - SUTTON,STORAGE REQUIRED FOR CLIENT,Peoples Services Directorate,Offsite Storage,F231,
http://opendatacommunities.org/id/london-borough-council/sutton,London Borough of Sutton,19/01/2021,1309674,575.00 , ACCESS SUTTON,STORAGE REQUIRED FOR CLIENTS BELONGINGS,Peoples Services Directorate,Offsite Storage,F231,
http://opendatacommunities.org/id/london-borough-council/sutton,London Borough of Sutton,06/01/2021,1309674,123.81 , SABA PARK SERVICES,PARKING FINE INCURRED DURING WORK,Peoples Services Directorate,General Office Expenses,F235,
http://opendatacommunities.org/id/london-borough-council/sutton,London Borough of Sutton,13/01/2021,1309674,45.00 , ALLIUM,FUNERAL WREATH S ATKINS,Peoples Services Directorate,Burials/Cremations,H303,
http://opendatacommunities.org/id/london-borough-council/sutton,London Borough of Sutton,13/01/2021,1309674,11.00 , LBSUTTON MOTO,DEATH CERTIFICATE FOR B HAWES,Peoples Services Directorate,Burials/Cremations,H303,
http://opendatacommunities.org/id/london-borough-council/sutton,London Borough of Sutton,05/01/2021,1309674,11.00 , LBS REGISTRARS,DEATH CERT T BARKER,Peoples Services Directorate,Burials/Cremations,H303,
http://opendatacommunities.org/id/london-borough-council/sutton,London Borough of Sutton,18/01/2021,1309674,5.40 , TRANSLATED.COM,TRANSLATION FOR COVID ADVERTISING,Health and Wellbeing Directorate,Advertising/Publicity (non Staff),F240,
http://opendatacommunities.org/id/london-borough-council/sutton,London Borough of Sutton,15/01/2021,1309674,196.38 , TRANSLATED.COM,TRANSLATION FOR COVID ADVERTISING,Health and Wellbeing Directorate,Advertising/Publicity (non Staff),F240,
http://opendatacommunities.org/id/london-borough-council/sutton,London Borough of Sutton,12/01/2021,1309674,436.80 , WE BRAND IT,TAXI WINDOW STICKER REPLACEMENTS,Health and Wellbeing Directorate,Advertising/Publicity (non Staff),F240,
http://opendatacommunities.org/id/london-borough-council/sutton,London Borough of Sutton,08/01/2021,1309674,51.42 , FACEBK Z4F8F2KAL2,SPLIT - PUBLIC HEALTH COMMS (TRANSMISSION ILLUSTRATION AND MONTHLY CAMPAIGN) (25.71%),Health and Wellbeing Directorate,Advertising/Publicity (non Staff),F240,
http://opendatacommunities.org/id/london-borough-council/sutton,London Borough of Sutton,08/01/2021,1309674,5.40 , TRANSLATED.COM, TRANSLATIONS AND TRANSCRIPTION,Health and Wellbeing Directorate,Advertising/Publicity (non Staff),F240,
http://opendatacommunities.org/id/london-borough-council/sutton,London Borough of Sutton,07/01/2021,1309674,196.28 , TRANSLATED.COM, TRANSLATIONS AND TRANSCRIPTION,Health and Wellbeing Directorate,Advertising/Publicity (non Staff),F240,
http://opendatacommunities.org/id/london-borough-council/sutton,London Borough of Sutton,30/12/2020,1309674,50.00 , AMAZON.CO.UK MJ17C21C4,COMMUNITY EVENTS CONTRIBUTOR,Health and Wellbeing Directorate,Advertising/Publicity (non Staff),F240,
http://opendatacommunities.org/id/london-borough-council/sutton,London Borough of Sutton,08/01/2021,1309674,40.28 , FACEBK Z4F8F2KAL2,SPLIT - COVID-19 COMMS (PUBLIC HEALTH VIDEO MESSAGE) (20.14%),Peoples Services Directorate,Corporate Publicity,F356,
